[Event "*** Titled Tuesday Blitz"]
[Site "Chess.com"]
[Date "2020.05.12"]
[Round "9"]
[White "MFBerna"]
[Black "krstulov_alex"]
[Result "0-1"]
[WhiteElo "2385"]
[BlackElo "2540"]
[TimeControl "180+1"]
[EndTime "11:45:03 PDT"]
[Termination "krstulov_alex won on time"]

1. e4 {[%clk 0:02:57.1]} 1... c6 {[%clk 0:03:00]} 2. d4 {[%clk 0:02:52.7]} 2...
d5 {[%clk 0:03:00.9]} 3. exd5 {[%clk 0:02:51.5]} 3... cxd5 {[%clk 0:03:01.8]} 4.
Bf4 {[%clk 0:02:50.2]} 4... Nc6 {[%clk 0:03:01]} 5. c3 {[%clk 0:02:50]} 5... Nf6
{[%clk 0:03:01.7]} 6. Bd3 {[%clk 0:02:48.3]} 6... g6 {[%clk 0:03:02]} 7. Nd2
{[%clk 0:02:43.7]} 7... Bg7 {[%clk 0:03:02.6]} 8. Ne2 {[%clk 0:02:42.6]} 8...
Bf5 {[%clk 0:03:02.4]} 9. Nf3 {[%clk 0:02:39.5]} 9... Bxd3 {[%clk 0:02:48]} 10.
Qxd3 {[%clk 0:02:40.4]} 10... O-O {[%clk 0:02:46.2]} 11. O-O {[%clk 0:02:39.5]}
11... Nh5 {[%clk 0:02:40.1]} 12. Bg5 {[%clk 0:02:37.4]} 12... Qd6 {[%clk
0:02:32.9]} 13. Rfe1 {[%clk 0:02:34.1]} 13... h6 {[%clk 0:02:31.9]} 14. Bd2
{[%clk 0:02:31.1]} 14... Rfe8 {[%clk 0:02:24.6]} 15. Ng3 {[%clk 0:02:19.8]}
15... Nf4 {[%clk 0:02:20.5]} 16. Qb5 {[%clk 0:02:10.7]} 16... Ne6 {[%clk
0:01:40.5]} 17. Re2 {[%clk 0:01:46.2]} 17... a6 {[%clk 0:01:22.8]} 18. Qd3
{[%clk 0:01:46.2]} 18... Nf4 {[%clk 0:01:21]} 19. Bxf4 {[%clk 0:01:45.1]} 19...
Qxf4 {[%clk 0:01:21.9]} 20. Rae1 {[%clk 0:01:40.2]} 20... e6 {[%clk 0:01:22.3]}
21. Qd2 {[%clk 0:01:23.7]} 21... Qxd2 {[%clk 0:01:21.5]} 22. Nxd2 {[%clk
0:01:24.6]} 22... Rec8 {[%clk 0:01:19.3]} 23. Nb3 {[%clk 0:01:21.1]} 23... b6
{[%clk 0:01:18.7]} 24. Nf1 {[%clk 0:01:17]} 24... Bf8 {[%clk 0:01:18.9]} 25. Nc1
{[%clk 0:01:10.7]} 25... Rab8 {[%clk 0:01:17.9]} 26. Nd3 {[%clk 0:01:10.9]}
26... Na5 {[%clk 0:01:17.4]} 27. Nd2 {[%clk 0:01:02.5]} 27... Nc4 {[%clk
0:01:16.3]} 28. Nf3 {[%clk 0:00:57.4]} 28... Bd6 {[%clk 0:01:15.2]} 29. Nfe5
{[%clk 0:00:54.3]} 29... Kg7 {[%clk 0:01:13.6]} 30. f4 {[%clk 0:00:49.7]} 30...
b5 {[%clk 0:01:10.8]} 31. Nd7 {[%clk 0:00:40]} 31... Ra8 {[%clk 0:01:05.5]} 32.
b3 {[%clk 0:00:34.8]} 32... Na5 {[%clk 0:00:51.3]} 33. N7c5 {[%clk 0:00:15.3]}
33... Ra7 {[%clk 0:00:48.2]} 34. g3 {[%clk 0:00:13.6]} 34... Nb7 {[%clk
0:00:45.1]} 35. b4 {[%clk 0:00:13.6]} 35... a5 {[%clk 0:00:40.2]} 36. a3 {[%clk
0:00:13.7]} 36... axb4 {[%clk 0:00:39.3]} 37. axb4 {[%clk 0:00:14.6]} 37... Nd8
{[%clk 0:00:38.7]} 38. Rc2 {[%clk 0:00:09.6]} 38... Rca8 {[%clk 0:00:37.4]} 39.
Ree2 {[%clk 0:00:09.9]} 39... Nc6 {[%clk 0:00:37.5]} 40. Nb3 {[%clk 0:00:03.6]}
40... Ra3 {[%clk 0:00:34.4]} 41. Ndc5 {[%clk 0:00:04]} 41... Bxc5 {[%clk
0:00:29.7]} 42. Nxc5 {[%clk 0:00:04.9]} 42... Ne7 {[%clk 0:00:29.6]} 43. Kg2
{[%clk 0:00:05.3]} 43... Nc8 {[%clk 0:00:30.1]} 44. Kf3 {[%clk 0:00:04.9]} 44...
Nd6 {[%clk 0:00:30.7]} 45. Kg2 {[%clk 0:00:05.2]} 45... Nc4 {[%clk 0:00:28.6]}
46. h4 {[%clk 0:00:05.3]} 46... h5 {[%clk 0:00:27.3]} 47. Kf2 {[%clk 0:00:05.8]}
47... Kf8 {[%clk 0:00:27.9]} 48. Nd7+ {[%clk 0:00:05.9]} 48... Ke7 {[%clk
0:00:27.7]} 49. Nc5 {[%clk 0:00:06.2]} 49... Nd6 {[%clk 0:00:25.5]} 50. Re1
{[%clk 0:00:05.4]} 50... Ra2 {[%clk 0:00:22.6]} 51. Rxa2 {[%clk 0:00:04.4]}
51... Rxa2+ {[%clk 0:00:23.5]} 52. Re2 {[%clk 0:00:05.1]} 52... Ra3 {[%clk
0:00:22.2]} 53. Rc2 {[%clk 0:00:05]} 53... Kf6 {[%clk 0:00:20]} 54. Ke2 {[%clk
0:00:05.2]} 54... Kf5 {[%clk 0:00:20.4]} 55. Kd3 {[%clk 0:00:04.4]} 55... Kg4
{[%clk 0:00:20.1]} 56. Rg2 {[%clk 0:00:03.9]} 56... Nc4 {[%clk 0:00:16.4]} 57.
Nd7 {[%clk 0:00:03.7]} 57... Ra1 {[%clk 0:00:15.5]} 58. Nf6+ {[%clk 0:00:03.3]}
58... Kf5 {[%clk 0:00:15.8]} 59. Nd7 {[%clk 0:00:02.8]} 59... Rf1 {[%clk
0:00:14.9]} 60. Ke2 {[%clk 0:00:03]} 60... Rc1 {[%clk 0:00:15]} 61. Ne5 {[%clk
0:00:03]} 61... Rxc3 {[%clk 0:00:14.5]} 62. Nxf7 {[%clk 0:00:02]} 62... Rc2+
{[%clk 0:00:14]} 63. Kf3 {[%clk 0:00:02.2]} 63... Nd2+ {[%clk 0:00:11.4]} 64.
Ke2 {[%clk 0:00:02.6]} 64... Nb3+ {[%clk 0:00:09.3]} 65. Kf1 {[%clk 0:00:02.8]}
65... Rxg2 {[%clk 0:00:08.9]} 66. Kxg2 {[%clk 0:00:02.9]} 66... Nxd4 {[%clk
0:00:09.8]} 67. Nd6+ {[%clk 0:00:01.7]} 67... Kf6 {[%clk 0:00:10.3]} 68. Kf2
{[%clk 0:00:01.5]} 68... Ke7 {[%clk 0:00:10.8]} 69. Nc8+ {[%clk 0:00:01.4]}
69... Kd7 {[%clk 0:00:11.4]} 70. Na7 {[%clk 0:00:02.3]} 70... Kc7 {[%clk
0:00:11.1]} 71. Ke3 {[%clk 0:00:03.2]} 71... Kb6 {[%clk 0:00:11.6]} 72. Kxd4
{[%clk 0:00:03.6]} 72... Kxa7 {[%clk 0:00:12]} 73. Ke5 {[%clk 0:00:03.9]} 73...
Kb6 {[%clk 0:00:12.6]} 74. g4 {[%clk 0:00:02.3]} 74... hxg4 {[%clk 0:00:12.5]}
75. f5 {[%clk 0:00:02.3]} 75... exf5 {[%clk 0:00:12.2]} 76. Kf4 {[%clk
0:00:02.5]} 76... d4 {[%clk 0:00:11.7]} 77. Kg3 {[%clk 0:00:02]} 77... d3 {[%clk
0:00:12.1]} 78. Kf2 {[%clk 0:00:02.2]} 78... d2 {[%clk 0:00:12.7]} 79. Ke2
{[%clk 0:00:02.3]} 79... g3 {[%clk 0:00:13.6]} 80. Kxd2 {[%clk 0:00:02.4]} 80...
g2 {[%clk 0:00:14.3]} 0-1

[Event "*** Titled Tuesday Blitz"]
[Site "Chess.com"]
[Date "2020.05.12"]
[Round "9"]
[White "Al_Shima"]
[Black "Trankuilizer"]
[Result "1/2-1/2"]
[WhiteElo "2428"]
[BlackElo "2551"]
[TimeControl "180+1"]
[EndTime "11:45:04 PDT"]
[Termination "Game drawn by repetition"]

1. b3 {[%clk 0:03:00.9]} 1... Nf6 {[%clk 0:02:55.4]} 2. Bb2 {[%clk 0:03:01.8]}
2... g6 {[%clk 0:02:53.7]} 3. Bxf6 {[%clk 0:03:01.7]} 3... exf6 {[%clk
0:02:53.7]} 4. c4 {[%clk 0:03:02.6]} 4... Bg7 {[%clk 0:02:53.8]} 5. Nc3 {[%clk
0:03:02.1]} 5... f5 {[%clk 0:02:54.1]} 6. g3 {[%clk 0:03:02.4]} 6... O-O {[%clk
0:02:54]} 7. Bg2 {[%clk 0:03:02.7]} 7... c5 {[%clk 0:02:53.2]} 8. e3 {[%clk
0:03:01.8]} 8... Nc6 {[%clk 0:02:53.5]} 9. Nge2 {[%clk 0:03:01.6]} 9... d6
{[%clk 0:02:53.7]} 10. O-O {[%clk 0:03:01.3]} 10... Re8 {[%clk 0:02:51.5]} 11.
d4 {[%clk 0:03:00.8]} 11... cxd4 {[%clk 0:02:50.2]} 12. Nxd4 {[%clk 0:02:48.4]}
12... Nxd4 {[%clk 0:02:49.8]} 13. exd4 {[%clk 0:02:48.5]} 13... f4 {[%clk
0:02:50.5]} 14. Nd5 {[%clk 0:02:41.3]} 14... fxg3 {[%clk 0:02:46.5]} 15. fxg3
{[%clk 0:02:36.8]} 15... Be6 {[%clk 0:02:43.9]} 16. Qd2 {[%clk 0:02:27.4]} 16...
Rc8 {[%clk 0:02:40.1]} 17. Rae1 {[%clk 0:02:21.7]} 17... a6 {[%clk 0:02:30]} 18.
Kh1 {[%clk 0:02:15.8]} 18... b5 {[%clk 0:02:20.7]} 19. Rc1 {[%clk 0:02:08.3]}
19... bxc4 {[%clk 0:02:19]} 20. bxc4 {[%clk 0:02:07.4]} 20... Rb8 {[%clk
0:02:19.2]} 21. Qf2 {[%clk 0:01:53.6]} 21... f5 {[%clk 0:01:59.7]} 22. Nf4
{[%clk 0:01:44.9]} 22... Bf7 {[%clk 0:01:59.6]} 23. Rc2 {[%clk 0:01:32.2]} 23...
Qf6 {[%clk 0:01:55.5]} 24. Rd1 {[%clk 0:01:25]} 24... Rbc8 {[%clk 0:01:40.3]}
25. c5 {[%clk 0:01:19.7]} 25... dxc5 {[%clk 0:01:38.2]} 26. dxc5 {[%clk
0:01:18.8]} 26... Red8 {[%clk 0:01:28.4]} 27. Nd5 {[%clk 0:01:07.5]} 27... Bxd5
{[%clk 0:01:15.7]} 28. Bxd5+ {[%clk 0:01:00]} 28... Kh8 {[%clk 0:01:14.6]} 29.
c6 {[%clk 0:00:40.9]} 29... Rc7 {[%clk 0:01:14.2]} 30. Qb6 {[%clk 0:00:31.9]}
30... Qe5 {[%clk 0:01:13.9]} 31. Qxa6 {[%clk 0:00:19.3]} 31... h5 {[%clk
0:01:11.3]} 32. Qc4 {[%clk 0:00:18.4]} 32... Kh7 {[%clk 0:01:07.8]} 33. Re2
{[%clk 0:00:17.6]} 33... Rxc6 {[%clk 0:01:00.7]} 34. Rxe5 {[%clk 0:00:10]} 34...
Rxc4 {[%clk 0:00:59.9]} 35. Re2 {[%clk 0:00:08.3]} 35... Rc5 {[%clk 0:00:49.1]}
36. Bb3 {[%clk 0:00:08]} 36... Rxd1+ {[%clk 0:00:49.1]} 37. Bxd1 {[%clk
0:00:08.9]} 37... Rc1 {[%clk 0:00:49.1]} 38. Rd2 {[%clk 0:00:09]} 38... Bc3
{[%clk 0:00:49]} 39. Rd7+ {[%clk 0:00:08.7]} 39... Kh6 {[%clk 0:00:48.8]} 40.
Kg2 {[%clk 0:00:08.6]} 40... h4 {[%clk 0:00:34]} 41. gxh4 {[%clk 0:00:08.1]}
41... Bf6 {[%clk 0:00:34.5]} 42. h5 {[%clk 0:00:07.5]} 42... gxh5 {[%clk
0:00:33.7]} 43. Bb3 {[%clk 0:00:05.8]} 43... h4 {[%clk 0:00:32.9]} 44. Rd3
{[%clk 0:00:05.3]} 44... Ra1 {[%clk 0:00:32.2]} 45. h3 {[%clk 0:00:05.5]} 45...
Kg5 {[%clk 0:00:31.2]} 46. Rf3 {[%clk 0:00:05.2]} 46... Be5 {[%clk 0:00:31.2]}
47. Kf2 {[%clk 0:00:05.3]} 47... Bd4+ {[%clk 0:00:31.1]} 48. Ke2 {[%clk
0:00:04.9]} 48... Kf6 {[%clk 0:00:27.3]} 49. Rf1 {[%clk 0:00:04.7]} 49... Rxf1
{[%clk 0:00:23.5]} 50. Kxf1 {[%clk 0:00:05.6]} 50... Ke5 {[%clk 0:00:23.5]} 51.
Ke2 {[%clk 0:00:05]} 51... Kf4 {[%clk 0:00:23]} 52. Bc2 {[%clk 0:00:05.1]} 52...
Bc3 {[%clk 0:00:19.9]} 53. a4 {[%clk 0:00:04.9]} 53... Ba5 {[%clk 0:00:20.2]}
54. Bd3 {[%clk 0:00:04.7]} 54... Bb4 {[%clk 0:00:19.8]} 55. Kf2 {[%clk 0:00:05]}
55... Bd2 {[%clk 0:00:18]} 56. Kg2 {[%clk 0:00:05.2]} 56... Ba5 {[%clk
0:00:17.9]} 57. Bc2 {[%clk 0:00:05.4]} 57... Ke5 {[%clk 0:00:17.6]} 58. Bb1
{[%clk 0:00:06.1]} 58... Kf4 {[%clk 0:00:17.6]} 59. Bc2 {[%clk 0:00:05.9]} 59...
Ke5 {[%clk 0:00:17.7]} 60. Kf3 {[%clk 0:00:06.3]} 60... Bb4 {[%clk 0:00:16.9]}
61. Bb1 {[%clk 0:00:06.5]} 61... Ba5 {[%clk 0:00:17.2]} 62. Ba2 {[%clk
0:00:06.8]} 62... Bb4 {[%clk 0:00:17.4]} 63. Bb3 {[%clk 0:00:07.2]} 63... Ba5
{[%clk 0:00:17.5]} 64. Bd1 {[%clk 0:00:08.1]} 64... Bb4 {[%clk 0:00:17.8]} 65.
Ke3 {[%clk 0:00:08.8]} 65... Ba5 {[%clk 0:00:17.6]} 66. Be2 {[%clk 0:00:08.9]}
66... Bb4 {[%clk 0:00:17.1]} 67. Bd3 {[%clk 0:00:09]} 67... Ba5 {[%clk
0:00:16.9]} 68. Be2 {[%clk 0:00:09.3]} 68... Bb4 {[%clk 0:00:16.8]} 69. Bf3
{[%clk 0:00:10.1]} 69... Ba5 {[%clk 0:00:16.9]} 70. Kd3 {[%clk 0:00:10.2]} 70...
Kf4 {[%clk 0:00:16.3]} 71. Ke2 {[%clk 0:00:10.2]} 71... Kg3 {[%clk 0:00:16.5]}
72. Bd5 {[%clk 0:00:10.1]} 72... Kxh3 {[%clk 0:00:16]} 73. Kf3 {[%clk
0:00:10.5]} 73... Kh2 {[%clk 0:00:15.1]} 74. Be6 {[%clk 0:00:10.6]} 74... h3
{[%clk 0:00:14.6]} 75. Bxf5 {[%clk 0:00:10.6]} 75... Bb4 {[%clk 0:00:14.4]} 76.
Kf2 {[%clk 0:00:09.6]} 76... Ba5 {[%clk 0:00:14.3]} 77. Kf1 {[%clk 0:00:09.7]}
77... Bb6 {[%clk 0:00:13.9]} 78. Be6 {[%clk 0:00:09]} 78... Ba5 {[%clk
0:00:13.5]} 79. Bd7 {[%clk 0:00:09.2]} 79... Bb6 {[%clk 0:00:13.7]} 80. Bc8
{[%clk 0:00:09.5]} 80... Ba5 {[%clk 0:00:13]} 81. Bg4 {[%clk 0:00:09.9]} 81...
Bb6 {[%clk 0:00:12.9]} 82. Be6 {[%clk 0:00:10.3]} 82... Ba5 {[%clk 0:00:12.9]}
83. Bd7 {[%clk 0:00:10.6]} 83... Bb6 {[%clk 0:00:12.9]} 84. Be6 {[%clk
0:00:10.7]} 1/2-1/2

[Event "*** Titled Tuesday Blitz"]
[Site "Chess.com"]
[Date "2020.05.12"]
[Round "9"]
[White "Mr_Sinigami"]
[Black "Baronessa08"]
[Result "1-0"]
[WhiteElo "2612"]
[BlackElo "2470"]
[TimeControl "180+1"]
[EndTime "11:45:07 PDT"]
[Termination "Mr_Sinigami won on time"]

1. d4 {[%clk 0:03:00.9]} 1... d5 {[%clk 0:02:58]} 2. Nf3 {[%clk 0:02:59.9]} 2...
Nf6 {[%clk 0:02:57.4]} 3. Bf4 {[%clk 0:02:59.8]} 3... e6 {[%clk 0:02:56.7]} 4.
e3 {[%clk 0:02:59.5]} 4... Bd6 {[%clk 0:02:55.2]} 5. Bg3 {[%clk 0:02:59.4]} 5...
O-O {[%clk 0:02:53]} 6. Nbd2 {[%clk 0:02:58.8]} 6... c5 {[%clk 0:02:50.3]} 7. c3
{[%clk 0:02:58.6]} 7... b6 {[%clk 0:02:46.3]} 8. Ne5 {[%clk 0:02:49.4]} 8... Qc7
{[%clk 0:02:42.3]} 9. Bd3 {[%clk 0:02:47.1]} 9... Ba6 {[%clk 0:02:40.6]} 10.
Bxa6 {[%clk 0:02:42.5]} 10... Nxa6 {[%clk 0:02:38.3]} 11. O-O {[%clk 0:02:41.7]}
11... Nb8 {[%clk 0:02:27.5]} 12. f4 {[%clk 0:02:39.3]} 12... Nbd7 {[%clk
0:02:16.8]} 13. Bh4 {[%clk 0:02:37.3]} 13... Ne4 {[%clk 0:02:04]} 14. Nxe4
{[%clk 0:02:17]} 14... dxe4 {[%clk 0:02:04.8]} 15. Nxd7 {[%clk 0:01:47.3]} 15...
Qxd7 {[%clk 0:02:04.7]} 16. dxc5 {[%clk 0:01:47.2]} 16... bxc5 {[%clk
0:02:05.3]} 17. Rf2 {[%clk 0:01:41.9]} 17... Qc6 {[%clk 0:02:01.3]} 18. Rd2
{[%clk 0:01:41.1]} 18... Bc7 {[%clk 0:02:01.3]} 19. c4 {[%clk 0:01:18.7]} 19...
f6 {[%clk 0:01:55.9]} 20. Qc2 {[%clk 0:01:15.2]} 20... Ba5 {[%clk 0:01:52.5]}
21. Rdd1 {[%clk 0:01:14.6]} 21... Rad8 {[%clk 0:01:50.9]} 22. h3 {[%clk
0:01:01.6]} 22... Rd3 {[%clk 0:01:44]} 23. Rxd3 {[%clk 0:00:55.4]} 23... exd3
{[%clk 0:01:44.9]} 24. Qxd3 {[%clk 0:00:55.5]} 24... Rd8 {[%clk 0:01:44.9]} 25.
Qb3 {[%clk 0:00:48.4]} 25... Rd2 {[%clk 0:01:39.3]} 26. Bf2 {[%clk 0:00:45.5]}
26... Qd6 {[%clk 0:01:17.8]} 27. Rf1 {[%clk 0:00:39.9]} 27... h5 {[%clk
0:01:13.9]} 28. Qb7 {[%clk 0:00:33.9]} 28... Bb6 {[%clk 0:01:06.1]} 29. Qf3
{[%clk 0:00:27.7]} 29... g6 {[%clk 0:01:00.9]} 30. Qe4 {[%clk 0:00:25.4]} 30...
Kh7 {[%clk 0:00:57.9]} 31. Rb1 {[%clk 0:00:24.1]} 31... f5 {[%clk 0:00:30.3]}
32. Qb7+ {[%clk 0:00:22.2]} 32... Kg8 {[%clk 0:00:19.9]} 33. Qc8+ {[%clk
0:00:19.7]} 33... Kh7 {[%clk 0:00:18.6]} 34. Qb7+ {[%clk 0:00:19.4]} 34... Kg8
{[%clk 0:00:18.6]} 35. Bh4 {[%clk 0:00:15.6]} 35... Qd7 {[%clk 0:00:07.7]} 36.
Qxd7 {[%clk 0:00:13.5]} 36... Rxd7 {[%clk 0:00:06.3]} 37. Be1 {[%clk 0:00:13.8]}
37... Kf7 {[%clk 0:00:04.3]} 38. Kf1 {[%clk 0:00:13.8]} 38... e5 {[%clk
0:00:04.5]} 39. fxe5 {[%clk 0:00:12]} 39... Ke6 {[%clk 0:00:04.7]} 40. Bc3
{[%clk 0:00:10.7]} 40... Bc7 {[%clk 0:00:04.9]} 41. Ke2 {[%clk 0:00:10.9]} 41...
Bxe5 {[%clk 0:00:04.2]} 42. Bxe5 {[%clk 0:00:11.4]} 42... Kxe5 {[%clk
0:00:05.1]} 43. Rd1 {[%clk 0:00:11.7]} 43... Rb7 {[%clk 0:00:04.7]} 44. b3
{[%clk 0:00:11.7]} 44... Rc7 {[%clk 0:00:03.9]} 45. Rd5+ {[%clk 0:00:11.5]}
45... Ke6 {[%clk 0:00:03.9]} 46. Kf3 {[%clk 0:00:11.7]} 46... g5 {[%clk
0:00:04.1]} 47. h4 {[%clk 0:00:10.2]} 47... gxh4 {[%clk 0:00:03.4]} 48. e4
{[%clk 0:00:10.3]} 48... fxe4+ {[%clk 0:00:03.1]} 49. Kxe4 {[%clk 0:00:10.6]}
49... Rg7 {[%clk 0:00:03.4]} 50. Kf3 {[%clk 0:00:10.4]} 50... Rg3+ {[%clk
0:00:03.1]} 51. Kf2 {[%clk 0:00:10.1]} 51... Rc3 {[%clk 0:00:01.3]} 52. Rxh5
{[%clk 0:00:06.5]} 52... Rc2+ {[%clk 0:00:01.7]} 53. Kf3 {[%clk 0:00:06.9]}
53... Rxa2 {[%clk 0:00:02.2]} 54. Rxc5 {[%clk 0:00:07.3]} 54... Rb2 {[%clk
0:00:02.4]} 55. Rb5 {[%clk 0:00:07.5]} 55... a6 {[%clk 0:00:01.5]} 56. Rb6+
{[%clk 0:00:07.3]} 56... Ke5 {[%clk 0:00:01.6]} 57. c5 {[%clk 0:00:07.4]} 57...
Kd5 {[%clk 0:00:01.8]} 58. c6 {[%clk 0:00:07.3]} 58... Kd6 {[%clk 0:00:02]} 59.
b4 {[%clk 0:00:06.6]} 59... Kc7 {[%clk 0:00:02.1]} 60. Rxa6 {[%clk 0:00:05.8]}
60... Rxb4 {[%clk 0:00:02.3]} 61. Kf2 {[%clk 0:00:03.9]} 61... Rc4 {[%clk
0:00:02]} 62. Kg1 {[%clk 0:00:03.9]} 62... Rd4 {[%clk 0:00:01.7]} 63. Kh2 {[%clk
0:00:04]} 63... Rd3 {[%clk 0:00:02]} 64. Ra4 {[%clk 0:00:02.9]} 64... Kxc6
{[%clk 0:00:02.2]} 65. Rxh4 {[%clk 0:00:03.4]} 65... Kd6 {[%clk 0:00:02.2]} 66.
Rf4 {[%clk 0:00:03.7]} 66... Ke7 {[%clk 0:00:01.2]} 67. g3 {[%clk 0:00:02.6]}
67... Rc3 {[%clk 0:00:01]} 68. Kh3 {[%clk 0:00:02.9]} 1-0

[Event "*** Titled Tuesday Blitz"]
[Site "Chess.com"]
[Date "2020.05.12"]
[Round "9"]
[White "BAS8892"]
[Black "EddieMarsalla"]
[Result "1-0"]
[WhiteElo "2718"]
[BlackElo "2545"]
[TimeControl "180+1"]
[EndTime "11:45:16 PDT"]
[Termination "BAS8892 won by resignation"]

1. d4 {[%clk 0:03:00.9]} 1... d5 {[%clk 0:02:59.6]} 2. Bf4 {[%clk 0:02:59.4]}
2... Bf5 {[%clk 0:02:59.9]} 3. c4 {[%clk 0:02:56.1]} 3... e6 {[%clk 0:02:57.6]}
4. Nc3 {[%clk 0:02:54.1]} 4... c6 {[%clk 0:02:57.6]} 5. e3 {[%clk 0:02:46.2]}
5... Bd6 {[%clk 0:02:56.7]} 6. Bxd6 {[%clk 0:02:38.9]} 6... Qxd6 {[%clk
0:02:57.6]} 7. c5 {[%clk 0:02:39.1]} 7... Qc7 {[%clk 0:02:56.5]} 8. f4 {[%clk
0:02:38.7]} 8... Nd7 {[%clk 0:02:55]} 9. Bd3 {[%clk 0:02:37.9]} 9... Bxd3 {[%clk
0:02:52.3]} 10. Qxd3 {[%clk 0:02:37.4]} 10... f5 {[%clk 0:02:53.2]} 11. Nf3
{[%clk 0:02:35.6]} 11... Ngf6 {[%clk 0:02:53.2]} 12. O-O {[%clk 0:02:33.8]}
12... O-O {[%clk 0:02:52.9]} 13. Ne5 {[%clk 0:02:33.8]} 13... Ne4 {[%clk
0:02:52.7]} 14. b4 {[%clk 0:02:30.4]} 14... a6 {[%clk 0:02:52]} 15. a4 {[%clk
0:02:29.8]} 15... g5 {[%clk 0:02:43.7]} 16. Nxe4 {[%clk 0:02:23.2]} 16... fxe4
{[%clk 0:02:43]} 17. Qe2 {[%clk 0:02:22.9]} 17... gxf4 {[%clk 0:02:41.8]} 18.
exf4 {[%clk 0:02:13.6]} 18... Nxe5 {[%clk 0:02:41.3]} 19. fxe5 {[%clk
0:02:13.3]} 19... Qg7 {[%clk 0:02:38.4]} 20. Ra3 {[%clk 0:01:52.7]} 20... Rxf1+
{[%clk 0:02:35.3]} 21. Qxf1 {[%clk 0:01:52.6]} 21... Rf8 {[%clk 0:02:34.4]} 22.
Qe2 {[%clk 0:01:52]} 22... Kh8 {[%clk 0:02:29.3]} 23. Rg3 {[%clk 0:01:35.9]}
23... Qh6 {[%clk 0:02:28.6]} 24. Re3 {[%clk 0:01:24.8]} 24... Qf4 {[%clk
0:02:21.8]} 25. h3 {[%clk 0:01:20.6]} 25... Rf5 {[%clk 0:02:11.4]} 26. Rc3
{[%clk 0:01:13.5]} 26... Rf7 {[%clk 0:01:55.8]} 27. b5 {[%clk 0:01:01.9]} 27...
axb5 {[%clk 0:01:53.8]} 28. axb5 {[%clk 0:01:01.5]} 28... cxb5 {[%clk 0:01:50]}
29. Rb3 {[%clk 0:00:47.8]} 29... Qc1+ {[%clk 0:01:21]} 30. Kh2 {[%clk
0:00:46.7]} 30... Rf1 {[%clk 0:01:12.8]} 31. Rxb5 {[%clk 0:00:22.9]} 31... Rh1+
{[%clk 0:01:11.3]} 32. Kg3 {[%clk 0:00:22.7]} 32... Qg5+ {[%clk 0:01:02.5]} 33.
Qg4 {[%clk 0:00:22.3]} 33... Qe3+ {[%clk 0:00:56.9]} 34. Kh4 {[%clk 0:00:22.2]}
34... Rf1 {[%clk 0:00:26.2]} 35. Rxb7 {[%clk 0:00:19.2]} 35... Qh6+ {[%clk
0:00:24]} 36. Kg3 {[%clk 0:00:12.6]} 36... Qe3+ {[%clk 0:00:22.3]} 37. Kh4
{[%clk 0:00:12.7]} 37... Qh6+ {[%clk 0:00:18.1]} 38. Qh5 {[%clk 0:00:10.2]}
38... Qxh5+ {[%clk 0:00:14.7]} 39. Kxh5 {[%clk 0:00:10.1]} 39... e3 {[%clk
0:00:14.6]} 40. Rb2 {[%clk 0:00:06.1]} 40... Rf2 {[%clk 0:00:14.1]} 41. Rb1
{[%clk 0:00:06]} 41... Rd2 {[%clk 0:00:14.1]} 42. Re1 {[%clk 0:00:05.9]} 42...
Rxd4 {[%clk 0:00:13.8]} 43. Rxe3 {[%clk 0:00:06.1]} 43... Rc4 {[%clk 0:00:14.4]}
44. Rf3 {[%clk 0:00:05.5]} 44... Rxc5 {[%clk 0:00:12.3]} 45. Kg5 {[%clk
0:00:05.6]} 45... Kg7 {[%clk 0:00:11.9]} 46. Ra3 {[%clk 0:00:05.6]} 46... Rc7
{[%clk 0:00:11]} 47. Ra6 {[%clk 0:00:04.8]} 47... Kf7 {[%clk 0:00:11.3]} 48. Rd6
{[%clk 0:00:04]} 48... Ke7 {[%clk 0:00:11.2]} 49. Kh6 {[%clk 0:00:03.7]} 49...
Rd7 {[%clk 0:00:11.5]} 50. Rb6 {[%clk 0:00:02.8]} 50... d4 {[%clk 0:00:11.8]}
51. Rb2 {[%clk 0:00:03.3]} 51... d3 {[%clk 0:00:09.4]} 52. Rd2 {[%clk
0:00:03.6]} 52... Kd8 {[%clk 0:00:09.6]} 53. Kg5 {[%clk 0:00:03.7]} 53... Kc7
{[%clk 0:00:09.7]} 54. Kf4 {[%clk 0:00:04.1]} 54... Rd5 {[%clk 0:00:08.7]} 55.
Ke4 {[%clk 0:00:04.3]} 55... Ra5 {[%clk 0:00:08.7]} 56. Rxd3 {[%clk 0:00:04.6]}
56... Ra4+ {[%clk 0:00:08.7]} 57. Rd4 {[%clk 0:00:04.9]} 57... Ra2 {[%clk
0:00:08.9]} 58. g4 {[%clk 0:00:05.1]} 58... Rh2 {[%clk 0:00:08.7]} 59. Rd3
{[%clk 0:00:05.4]} 59... Kc6 {[%clk 0:00:08.7]} 60. Kf4 {[%clk 0:00:05.7]} 60...
Kc5 {[%clk 0:00:08.5]} 61. Kg5 {[%clk 0:00:06]} 61... Kc4 {[%clk 0:00:08.3]} 62.
Rf3 {[%clk 0:00:05.7]} 62... Kd5 {[%clk 0:00:09.2]} 63. Kf6 {[%clk 0:00:05.9]}
63... Rd2 {[%clk 0:00:09.6]} 64. g5 {[%clk 0:00:06]} 64... Re2 {[%clk
0:00:09.9]} 65. Kg7 {[%clk 0:00:06]} 65... Rxe5 {[%clk 0:00:09.6]} 66. Rg3
{[%clk 0:00:06.3]} 66... Ke4 {[%clk 0:00:07.1]} 67. Kxh7 {[%clk 0:00:06.5]}
67... Kf4 {[%clk 0:00:07.3]} 68. Rg4+ {[%clk 0:00:06.7]} 68... Kf5 {[%clk
0:00:07.7]} 69. g6 {[%clk 0:00:06.9]} 69... Re3 {[%clk 0:00:07.8]} 70. Rh4
{[%clk 0:00:05.2]} 70... Rg3 {[%clk 0:00:07.9]} 71. Rh5+ {[%clk 0:00:04.4]}
71... Kf6 {[%clk 0:00:07.3]} 72. Rh6 {[%clk 0:00:04.3]} 72... e5 {[%clk
0:00:07.3]} 73. h4 {[%clk 0:00:04.6]} 73... e4 {[%clk 0:00:06.8]} 74. h5 {[%clk
0:00:04.9]} 74... e3 {[%clk 0:00:06.8]} 75. g7+ {[%clk 0:00:05.3]} 75... Kf7
{[%clk 0:00:07.2]} 76. Rg6 {[%clk 0:00:05.7]} 1-0